bitfinex/quotes_ETHUSD_20260302
["timestamp","ask_amount","ask_price","bid_price","bid_amount"]
[1772430637876,5.89008176,1978.3,1977.8,6.1815137]
[1772430638083,5.89008176,1978.3,1977.9,4.91649267]
[1772430638377,2.841,1978.4,1977.9,4.91649267]
[1772430638750,7.15357263,1978.7,1978.2,6.96271379]
[1772430638979,5.89008176,1978.7,1978.3,4.91649267]
[1772430639490,0.002,1978.6,1978.4,1.26364739]
[1772430639696,5.89008176,1978.9,1978.4,8.22636118]
[1772430639850,5.89008176,1978.9,1978.5,4.91649267]
[1772430640050,5.89208176,1978.9,1978.5,4.91649267]
[1772430640489,0.002,1978.9,1978.5,4.91649267]
[1772430640983,7.15541691,1978.9,1978.3,6.18017577]
[1772430642983,7.15541691,1978.9,1978.2,1.26373814]
[1772430643979,5.89008176,1978.7,1977.9,4.91749267]
[1772430644190,5.89008176,1978.6,1977.9,0.001]
[1772430645159,5.89008176,1978.4,1977.9,0.001]
[1772430645860,2.841,1978.4,1977.9,0.001]
[1772430646087,5.89008176,1978.3,1977.9,0.001]
[1772430649186,2.841,1978.4,1977.9,4.91749267]
[1772430649390,4.10464786,1978.4,1977.9,4.91749267]
[1772430650460,10.41109971,1978.4,1977.9,4.91749267]
[1772430650886,6.30645185,1978.3,1977.9,4.91749267]
[1772430651582,7.57016701,1978.3,1977.9,0.001]
[1772430651884,7.57016701,1978.3,1978.0,0.001]
[1772430658101,7.57008352,1978.5,1978.0,4.91749267]
[1772430658392,7.57003889,1978.5,1978.0,4.91749267]
[1772430658967,6.30645185,1978.5,1978.0,4.91749267]
[1772430659179,7.5700391,1978.5,1978.0,4.91749267]
[1772430660383,7.5700391,1978.5,1978.0,0.001]
[1772430661175,6.30645185,1978.4,1977.9,0.001]
[1772430661512,6.30645185,1978.2,1977.9,0.001]
[1772430662277,7.57023038,1978.2,1977.9,0.001]
[1772430664126,7.57023038,1978.2,1978.0,0.001]
[1772430664975,6.30645185,1978.4,1978.0,3.65371414]
[1772430665893,2.855,1978.3,1978.0,3.65371414]
[1772430666099,6.30645185,1978.2,1977.9,0.001]
[1772430670233,7.57027703,1978.2,1977.9,0.001]
[1772430675224,9.355,1978.3,1977.9,0.001]
[1772430675535,9.361,1978.3,1977.9,0.001]
[1772430675735,9.361,1978.3,1978.0,0.001]
[1772430675933,0.002,1978.1,1978.0,0.001]
[1772430682361,0.002,1978.1,1977.7,5.05712296]
[1772430682362,6.502,1978.1,1977.7,0.001]
[1772430682642,6.79179916,1977.9,1977.4,0.001]
[1772430684013,7.76353074,1977.8,1977.4,0.001]
[1772430684347,7.76353074,1977.8,1977.0,1.26707603]
[1772430684348,6.4995,1977.6,1977.0,1.26707603]
[1772430684545,6.4995,1977.5,1977.0,1.26707603]
[1772430684843,6.4995,1977.5,1977.0,0.00253886]
[1772430686650,7.76373173,1977.5,1977.0,0.00253886]
[1772430686942,7.76372514,1977.5,1977.0,0.00253886]
[1772430687145,6.4995,1977.5,1977.0,0.00253886]
[1772430687716,7.76373893,1977.5,1977.1,0.001]
[1772430691958,6.499,1977.3,1976.9,0.001]
[1772430692258,6.499,1977.2,1976.9,0.001]
[1772430694559,10.63335499,1977.3,1976.9,0.003]
[1772430695265,10.63335499,1977.3,1976.9,0.001]
[1772430695752,6.499,1977.2,1976.9,0.001]
[1772430696848,7.76343246,1977.2,1976.9,0.001]
[1772430698458,2.72718868,1977.2,1976.6,0.001]
[1772430698645,6.498,1976.9,1976.6,0.001]
[1772430699357,2.873,1977.0,1976.6,0.005]
[1772430699570,10.63638397,1977.3,1976.7,0.004]
[1772430699774,9.372,1977.3,1976.7,0.004]
[1772430699941,6.498,1977.4,1976.9,0.004]
[1772430700533,6.498,1977.4,1977.0,0.004]
[1772430701163,6.27370282,1977.5,1977.0,0.004]
[1772430701541,0.002,1977.4,1977.0,0.004]
[1772430706467,0.002,1977.4,1977.1,6.10640495]
[1772430706670,0.002,1977.4,1977.1,6.39893302]
[1772430706968,0.002,1977.4,1977.1,6.10640495]
[1772430707745,0.002,1977.4,1977.1,6.39893302]
[1772430708770,0.002,1977.4,1977.1,7.66340907]
[1772430709150,9.14970282,1977.5,1977.3,6.18809255]
[1772430709151,1e-08,1977.5,1977.3,6.18809255]
[1772430709359,1e-08,1977.5,1977.4,6.18809255]
[1772430709676,1e-08,1977.5,1977.4,5.89556448]
[1772430711254,1e-08,1977.5,1977.1,0.29252807]
[1772430711574,6.38327868,1977.5,1977.1,5.89556448]
[1772430711964,6.38327868,1977.5,1977.1,6.18809255]
[1772430712780,6.38327868,1977.5,1977.1,5.89556448]
[1772430713774,6.38327868,1977.5,1977.1,7.16103926]
[1772430714077,0.002,1977.4,1977.1,7.16103926]
[1772430714258,6.38527867,1977.4,1977.1,0.001]
[1772430714974,6.38527867,1977.4,1976.8,0.001]
[1772430714975,6.38327867,1977.1,1976.8,0.001]
[1772430715387,6.38327867,1977.1,1976.8,1.26566028]
[1772430715549,2.876,1977.2,1976.8,7.16122476]
[1772430715748,9.25927867,1977.2,1976.8,5.89656448]
[1772430716047,6.38327867,1977.1,1976.8,0.001]
[1772430718847,0.002,1977.4,1977.0,6.18809255]
[1772430719053,2.878,1977.3,1977.0,6.18809255]
[1772430719369,0.002,1977.4,1977.0,6.18809255]
[1772430720349,2.879,1977.3,1977.2,0.29252807]
[1772430720548,2.879,1977.3,1977.1,6.33429446]
[1772430720957,10.52663147,1977.3,1976.8,0.001]
[1772430721179,10.52663147,1977.3,1976.8,7.16122995]
[1772430721401,10.52663147,1977.3,1976.8,5.89656448]
[1772430721591,4.1433528,1977.3,1976.8,5.89656448]
[1772430721885,4.1433528,1977.3,1976.8,0.001]
[1772430721886,6.38327867,1977.2,1976.8,0.001]
[1772430722251,6.38327867,1977.2,1976.8,5.89656448]
[1772430722592,4.1433528,1977.3,1976.8,5.89656448]
[1772430723481,2.88,1977.2,1976.9,6.33429446]
[1772430724463,2.88,1977.2,1976.9,5.89556448]
[1772430725089,2.88,1977.2,1976.9,7.16012003]
[1772430726267,2.88,1977.2,1976.8,1.26562691]
[1772430726554,9.26327867,1977.2,1976.8,1.26562691]
[1772430727083,7.64780711,1977.1,1976.9,0.001]
[1772430727483,6.38327867,1977.1,1976.9,0.001]
[1772430729454,7.64776063,1977.1,1976.9,0.001]
[1772430731707,0.002,1977.2,1976.9,5.89656448]
[1772430731989,0.002,1977.3,1977.0,5.89556448]
[1772430734881,0.002,1977.3,1977.0,7.16007464]
[1772430736170,0.002,1977.3,1977.0,5.89556448]
[1772430736370,0.002,1977.3,1977.0,7.16010168]
[1772430736889,0.002,1977.3,1977.0,5.89556448]
[1772430737090,0.002,1977.3,1977.0,7.16010661]
[1772430737390,0.002,1977.3,1976.9,1.26555745]
[1772430737557,6.07951912,1977.3,1976.9,0.001]
[1772430739091,6.07951912,1977.3,1976.9,6.1643084]
[1772430739263,2.883,1977.2,1976.9,6.1643084]
[1772430739663,2.885,1977.2,1976.9,6.1643084]
[1772430740178,6.07751912,1977.1,1976.9,0.001]
[1772430743202,0.002,1977.2,1976.9,6.1643084]
[1772430743407,2.885,1977.1,1976.9,6.1643084]
[1772430747307,2.885,1977.1,1976.9,0.001]
[1772430747674,6.07751912,1977.0,1976.8,0.001]
[1772430748609,6.51640687,1977.0,1976.5,0.001]
[1772430748783,6.07751912,1977.0,1976.5,0.001]
[1772430749378,6.07751912,1976.8,1976.5,0.001]
[1772430749607,1.2646062,1976.9,1976.5,0.001]
[1772430749608,2.885,1976.7,1976.5,0.001]
[1772430749811,6.07751912,1976.6,1976.5,0.001]
[1772430751615,6.07751912,1976.6,1976.0,6.16484726]
[1772430751786,6.07751912,1976.6,1976.1,5.16750003]
[1772430752111,2.886,1976.6,1976.2,5.94407938]
[1772430752478,8.96351912,1976.6,1976.2,0.43888775]
[1772430752678,8.96351912,1976.6,1976.1,5.50519163]
[1772430753504,8.96351912,1976.6,1976.2,5.94407938]
[1772430754607,6.07751912,1977.0,1976.5,5.50519163]
[1772430754806,8.96351912,1977.0,1976.6,5.94407938]
[1772430754999,2.886,1977.0,1976.6,5.94407938]
[1772430756709,2.886,1977.0,1976.6,6.76994844]
[1772430757813,2.886,1977.0,1976.7,5.50519163]
[1772430759115,2.886,1977.0,1976.7,6.76986548]
[1772430762610,2.886,1977.0,1976.7,6.7699255]
[1772430762919,2.886,1977.0,1976.7,5.50519163]
[1772430764322,8.96351912,1977.0,1976.6,1.26477046]
[1772430764622,8.96351912,1977.0,1976.6,5.50519163]
[1772430764825,0.002,1976.9,1976.6,5.50519163]
[1772430765392,8.96351912,1977.0,1976.7,5.50319163]
[1772430765393,0.002,1977.0,1976.7,5.50319163]
[1772430765695,0.002,1977.2,1976.8,5.50319163]
[1772430766812,0.002,1977.2,1976.9,6.76779783]
[1772430768523,7.8038898,1977.3,1976.9,6.76779783]
[1772430768524,0.002,1977.4,1977.2,5.50319163]
[1772430768724,0.002,1977.4,1977.0,5.50319163]
[1772430768906,6.2978898,1977.4,1977.1,1.26447827]
[1772430769218,6.2978898,1977.4,1977.0,6.76768358]
[1772430770529,7.56218692,1977.4,1976.9,1.26456701]
[1772430770827,6.2958898,1977.2,1976.6,6.76798976]
[1772430771122,7.56035413,1977.2,1976.6,6.76798976]
[1772430775726,7.56217668,1977.4,1976.5,10.56260376]
[1772430775916,7.56217668,1977.4,1976.6,5.50319163]
[1772430776308,7.56217668,1977.4,1976.7,5.50319163]
[1772430777218,7.56217668,1977.4,1976.8,6.7678618]
[1772430777424,0.002,1977.2,1976.8,6.7678618]
[1772430778530,0.002,1977.2,1976.9,5.94198056]
[1772430779827,0.002,1977.2,1977.0,5.50319163]
[1772430783033,0.002,1977.2,1977.0,6.76773213]
[1772430783333,0.002,1977.5,1977.3,5.50119163]
[1772430783504,0.002,1977.7,1977.0,7.05827532]
[1772430783505,6.2978898,1977.4,1977.0,7.05827532]
[1772430783699,6.2978898,1977.6,1977.3,0.29254319]
[1772430783902,0.002,1977.6,1977.4,0.29254319]
[1772430784128,0.002,1977.6,1977.3,5.79373482]
[1772430784321,0.002,1977.6,1977.3,5.50119163]
[1772430784519,6.2958898,1977.9,1977.5,1.55676569]
[1772430785423,6.2958898,1977.9,1977.5,7.05795732]
[1772430789131,7.55986107,1977.9,1977.5,5.50119163]
[1772430789636,6.2958898,1977.9,1977.5,5.50119163]
[1772430790117,6.2958898,1977.9,1977.5,7.05795688]
[1772430790319,0.002,1977.8,1977.5,5.79373482]
[1772430790636,6.2978898,1977.8,1977.4,0.29254319]
[1772430791017,6.2978898,1977.8,1977.4,5.79373482]
[1772430791230,6.2978898,1977.8,1977.4,7.05798196]
[1772430793802,6.2978898,1977.8,1977.5,0.29254319]
[1772430794930,0.002,1977.8,1977.5,5.79373482]
[1772430795333,0.002,1977.8,1977.5,7.05795237]
[1772430795633,2.891,1977.8,1977.6,5.50119163]
[1772430796008,2.891,1977.8,1977.5,0.29254319]
[1772430796214,5.89355093,1977.7,1977.5,0.29254319]
[1772430796738,5.89355093,1977.7,1977.4,5.50119163]
[1772430796927,5.89355093,1977.7,1977.3,1.26429664]
[1772430797236,5.89355093,1977.7,1977.3,7.05803146]
[1772430797434,5.89355093,1977.7,1977.3,0.29254319]
[1772430797638,5.89355093,1977.7,1977.2,7.05814914]
[1772430797839,5.89355093,1977.7,1977.3,0.29254319]
[1772430798138,2.891,1977.8,1977.6,0.29254319]
[1772430799120,2.891,1977.8,1977.5,5.79373482]
[1772430799544,2.891,1977.8,1977.5,7.05793507]
[1772430802114,2.891,1977.8,1977.5,6.76539188]
[1772430802319,6.33930948,1977.7,1977.1,6.76664441]
[1772430802520,6.33930948,1977.7,1977.1,7.0591876]
[1772430802833,6.33930948,1977.7,1977.2,0.29254319]
[1772430803034,6.33930948,1977.7,1977.2,5.79373482]
[1772430803346,6.33930948,1977.7,1977.6,0.001]
[1772430803541,6.34130948,1977.7,1977.6,0.001]
[1772430810850,7.60540413,1977.7,1977.6,0.001]
[1772430811168,7.60540413,1977.7,1977.3,0.29354319]
[1772430812568,7.60540413,1977.7,1977.3,7.0600849]
[1772430812933,6.34130948,1977.7,1977.3,7.0600849]
[1772430813445,7.60540501,1977.7,1977.3,7.0600849]
[1772430815478,6.34130948,1977.7,1977.3,7.0600849]
[1772430817073,6.34130948,1977.7,1977.4,0.001]
[1772430817375,0.002,1977.6,1977.4,5.50319163]
[1772430819980,0.002,1977.6,1977.5,5.79473482]
[1772430821352,0.002,1977.9,1977.6,5.50219163]
[1772430821579,0.002,1977.9,1977.8,5.79473482]
[1772430821879,0.002,1977.9,1977.8,7.05876556]
[1772430822572,0.002,1977.9,1977.6,5.50219163]
[1772430822875,6.34130948,1977.9,1977.6,5.50219163]
[1772430823076,6.34130948,1977.9,1977.6,6.76633407]
[1772430823376,6.34130948,1977.9,1977.6,7.05887726]
[1772430826691,6.34130948,1977.9,1977.6,6.76633407]
[1772430827164,0.002,1977.9,1977.6,6.76633407]
[1772430827581,0.002,1977.9,1977.7,5.50219163]
[1772430828585,0.002,1978.1,1977.9,5.50019163]
[1772430828770,0.002,1978.4,1978.1,5.50019163]
[1772430829082,0.002,1978.4,1978.1,5.79273482]
[1772430829388,0.002,1978.4,1978.1,5.50019163]
[1772430830075,0.002,1978.4,1978.1,5.79273482]
[1772430830250,0.002,1978.4,1978.2,5.79273482]
[1772430831194,0.002,1978.4,1978.2,5.50019163]
[1772430832681,6.15906092,1978.4,1978.1,5.79273482]
[1772430832991,1.26371126,1978.3,1978.1,5.50019163]
[1772430833893,7.42077218,1978.3,1977.9,5.79273482]
[1772430836494,7.42077218,1978.3,1978.0,0.29254319]
[1772430836789,7.42077218,1978.3,1978.0,5.79273482]
[1772430837672,7.42259666,1978.6,1978.3,5.50019163]
[1772430838794,6.15906092,1978.6,1978.3,5.79273482]
[1772430839096,7.42258557,1978.6,1978.3,5.79273482]
[1772430839313,6.15706092,1978.5,1977.9,5.50019163]
[1772430839517,6.15706092,1978.1,1977.5,5.50019163]
[1772430839806,7.42096385,1978.0,1977.5,5.79273482]
[1772430840013,7.42096385,1978.0,1977.6,5.79273482]
[1772430841700,7.42096385,1978.0,1977.7,0.001]
[1772430842309,6.15706092,1978.0,1977.7,5.50119163]
[1772430843402,7.42096983,1978.0,1977.7,5.50119163]
[1772430848612,7.42096983,1978.0,1977.7,0.001]
[1772430851715,7.42096983,1978.0,1977.7,5.50119163]
[1772430855207,1.26390891,1978.0,1977.7,5.50119163]
[1772430855518,7.28211549,1978.0,1977.7,5.50119163]
[1772430859021,7.28211549,1978.0,1977.5,5.6612663]
[1772430859691,7.28211549,1978.0,1977.5,6.92548177]
[1772430859990,7.28211549,1978.0,1977.6,5.22174606]
[1772430860310,7.28211549,1978.0,1977.5,1.26521547]
[1772430860518,7.28211549,1978.0,1977.5,6.48696153]
[1772430861126,7.28211549,1978.0,1977.5,5.22274606]
[1772430862001,7.28211549,1978.0,1977.5,6.48696819]
[1772430862732,7.28211549,1978.0,1977.7,5.22174606]
[1772430865838,7.28211549,1978.0,1977.8,0.001]
[1772430866028,0.002,1977.9,1977.8,0.001]
[1772430868021,6.24614612,1977.8,1977.7,0.001]
[1772430868938,6.24814612,1977.9,1977.7,0.001]
[1772430871141,7.51216442,1977.9,1977.7,0.001]
[1772430871343,7.51216442,1977.9,1977.5,0.001]
[1772430871344,6.24614612,1977.7,1977.5,0.001]
[1772430873050,7.51030469,1977.6,1977.5,0.001]
[1772430875346,7.46030469,1977.6,1977.5,0.001]
[1772430877450,2.929,1977.7,1977.5,0.001]
[1772430877643,9.17514612,1977.7,1977.5,0.001]
[1772430878246,6.24614612,1977.6,1977.5,0.001]
[1772430879086,6.24814612,1977.6,1977.5,0.001]
[1772430880260,0.002,1977.6,1977.5,0.001]
[1772430883763,6.502,1977.6,1977.3,0.001]
[1772430886059,7.76618426,1977.6,1977.3,0.001]
[1772430890782,7.76618426,1977.6,1977.4,0.001]
[1772430891959,6.4995,1977.4,1977.1,0.001]
[1772430898778,7.76378761,1977.4,1977.1,0.001]
[1772430900775,6.4995,1977.3,1976.8,0.002]
[1772430900976,6.499,1977.1,1976.8,0.001]
[1772430902994,7.7634945,1977.1,1976.9,0.001]
[1772430903302,6.501,1977.5,1977.1,0.002]
[1772430903472,6.501,1977.5,1977.2,0.44052024]
[1772430903674,0.002,1977.5,1977.3,0.002]
[1772430904564,7.76522548,1977.5,1977.1,0.002]
[1772430905592,7.76522548,1977.5,1977.1,0.29449219]
[1772430905792,6.501,1977.5,1977.1,0.29449219]
[1772430908396,7.7652231,1977.5,1977.1,0.29449219]
[1772430909133,7.7652231,1977.5,1977.1,0.29249219]
[1772430910501,7.7652231,1977.5,1977.0,1.55900087]
[1772430911598,7.7652231,1977.5,1977.0,0.29449219]
[1772430911899,7.7652231,1977.5,1977.0,1.55903191]
[1772430913500,7.7652231,1977.5,1977.1,0.002]
[1772430913803,7.7652231,1977.5,1977.1,0.29449219]
[1772430915805,0.002,1977.4,1977.1,0.29449219]
[1772430917004,6.501,1977.4,1977.1,0.29449219]
[1772430918681,6.501,1977.4,1977.1,0.002]
[1772430923711,6.501,1977.4,1977.0,1.55903184]
[1772430924010,7.76529556,1977.4,1977.0,1.55903184]
[1772430924304,6.501,1977.4,1977.0,1.55903184]
[1772430925713,6.501,1977.4,1977.1,0.002]
[1772430925911,0.002,1977.4,1977.3,0.29449219]
[1772430926115,0.002,1977.4,1977.2,0.29449219]
[1772430926295,0.002,1977.4,1977.2,0.002]
[1772430928209,0.002,1977.3,1977.2,0.002]
[1772430929424,0.002,1977.8,1977.2,4.18933622]
[1772430929724,8.05852766,1977.8,1977.1,0.29349219]
[1772430929891,6.5,1977.4,1977.1,0.001]
[1772430937725,6.4995,1977.1,1976.7,0.001]
[1772430937932,6.4995,1976.7,1976.5,0.003]
[1772430938929,6.4995,1977.1,1976.6,0.29249219]
[1772430939095,6.4995,1977.0,1976.8,0.29249219]
[1772430939294,6.4995,1977.0,1976.7,0.29349219]
[1772430939925,6.4995,1977.7,1977.0,0.001]
[1772430940126,8.05609395,1977.7,1977.0,0.29249219]
[1772430940316,8.05609395,1977.7,1976.9,0.29349219]
[1772430940626,6.4995,1977.5,1976.9,0.29349219]
[1772430941218,6.4995,1977.3,1976.9,1.55807166]
[1772430941525,6.4995,1977.3,1977.0,0.003]
[1772430943127,6.4995,1977.3,1976.8,0.001]
[1772430943434,6.4995,1977.1,1976.9,0.003]
[1772430945113,6.4995,1977.1,1976.8,0.001]
[1772430945317,8.05650393,1977.1,1976.5,0.002]
[1772430945535,6.4975,1976.9,1976.5,0.001]
[1772430945934,6.4975,1976.7,1976.5,0.001]
[1772430946145,6.4975,1976.7,1976.1,0.29749219]
[1772430946347,6.4975,1976.7,1976.1,1.56256878]
[1772430947213,6.4975,1976.5,1976.0,1.55916535]
[1772430947536,6.4975,1976.5,1976.1,0.29249219]
[1772430948132,6.4975,1976.5,1976.2,0.29249219]
[1772430948821,6.4975,1976.5,1976.1,0.29749219]
[1772430949746,6.4975,1976.5,1976.1,0.005]
[1772430949913,6.4975,1976.5,1976.1,0.29749219]
[1772430951018,6.4975,1976.5,1976.1,0.29249219]
[1772430951344,6.4975,1976.5,1976.0,0.29903105]
[1772430951550,6.4975,1976.5,1976.3,0.29249219]
[1772430951850,6.4975,1976.7,1976.4,0.29749219]
[1772430952010,2.962,1976.8,1976.6,0.29249219]
[1772430952210,6.4975,1976.9,1976.6,0.29249219]
[1772430953546,6.4975,1976.9,1976.8,0.29249219]
[1772430953708,6.4975,1976.9,1976.6,1.56227794]
[1772430954042,7.76211285,1976.9,1976.5,0.005]
[1772430954241,0.002,1976.6,1976.5,0.005]
[1772430954814,6.4975,1976.5,1976.2,0.001]
[1772430958515,7.76236544,1976.5,1976.2,0.001]
[1772430958948,6.4975,1976.5,1976.2,0.001]
[1772430959346,7.76236822,1976.5,1976.2,0.001]
[1772430959645,6.4975,1976.5,1976.2,0.001]
[1772430960449,7.7623764,1976.5,1976.2,0.001]
[1772430962346,6.4975,1976.5,1976.2,0.001]
[1772430962736,6.4975,1976.5,1976.2,0.006]
[1772430962931,2.97,1976.6,1976.3,0.005]
[1772430963250,9.4675,1976.6,1976.3,0.005]
[1772430965054,6.4975,1976.5,1976.2,0.001]
[1772430965430,6.4975,1976.5,1976.0,0.00253886]
[1772430966774,6.497,1976.3,1976.0,0.00253886]
[1772430966939,6.497,1976.1,1976.0,0.00253886]
[1772430973065,5.06014863,1976.3,1976.1,1.26511816]
[1772430973066,6.497,1976.3,1976.1,1.26511816]
[1772430973238,6.497,1976.3,1976.0,1.27366896]
[1772430975752,6.497,1976.3,1975.9,0.001]
[1772430975753,7.76199717,1976.3,1975.9,0.001]
[1772430976546,6.49573057,1976.2,1975.9,0.001]
[1772430977368,7.76083739,1976.2,1975.9,0.001]
[1772430978371,6.49573057,1976.1,1975.9,0.001]
[1772430979192,6.49573057,1976.1,1976.0,0.001]
[1772430979346,8.20028396,1976.1,1976.0,0.001]
[1772430979546,6.49573057,1976.0,1975.9,0.001]
[1772430980291,6.49573057,1976.0,1975.8,0.001]
[1772430980706,9.47473057,1975.9,1975.8,0.001]
[1772430981502,10.73997678,1975.9,1975.8,0.001]
[1772430982170,9.47473057,1975.9,1975.8,0.001]
[1772430983807,10.73997678,1975.9,1975.8,0.001]
[1772430984102,9.47473057,1975.9,1975.8,0.001]
[1772430984491,6.49523057,1975.5,1975.0,1.2673529]
[1772430984805,6.49523057,1975.5,1975.1,0.00953886]
[1772430986885,6.49523057,1975.5,1975.1,1.70515142]
[1772430987082,6.49523057,1975.5,1975.1,1.27525505]
[1772430987604,6.49523057,1975.5,1975.2,0.00953886]
[1772430988105,7.76073347,1975.5,1975.0,1.26732345]
[1772430988813,6.49523057,1975.1,1975.0,0.00153886]
[1772430988969,7.76100252,1975.1,1974.5,5.06451714]
[1772430989171,6.49523057,1975.1,1974.5,5.06451714]
[1772430989370,6.49523057,1974.9,1974.4,1.42233182]
[1772430990784,1.26576697,1975.1,1974.5,2.0530303]
[1772430990785,6.49523057,1975.1,1974.5,2.0530303]
[1772430990995,6.49523057,1975.1,1974.6,1.2660792]
[1772430991202,7.76099707,1975.1,1974.6,1.2660792]
[1772430991498,6.49523057,1975.1,1974.6,1.2660792]
[1772430992383,6.49523057,1975.1,1975.0,0.001]
[1772430992995,6.49523057,1975.5,1975.0,0.001]
[1772430994507,7.7607484,1975.5,1975.0,0.001]
[1772430994827,6.49523057,1975.4,1975.0,0.001]
[1772430995176,6.49523057,1975.2,1975.0,0.001]
[1772430997580,6.49523057,1975.5,1975.0,0.001]
[1772431001090,6.49523057,1975.7,1975.0,2.0540303]
[1772431001414,9.48123057,1975.9,1975.1,1.26575869]
[1772431001714,6.49523057,1975.9,1975.2,2.0530303]
[1772431002680,7.76047829,1975.9,1975.1,1.26575869]
[1772431004224,6.49523057,1975.9,1975.1,1.26575869]
[1772431004933,0.002,1975.8,1975.1,1.26575869]
[1772431005117,6.49723057,1975.8,1975.1,1.26575869]
[1772431015945,6.49723057,1975.8,1975.2,2.0530303]
[1772431016442,0.002,1975.8,1975.2,2.0530303]
[1772431016642,6.49523057,1975.7,1975.2,4.6500303]
[1772431017146,6.26219911,1975.8,1975.3,7.21609078]
[1772431017749,6.26219911,1975.9,1975.4,5.95046025]
[1772431018448,0.002,1975.9,1975.5,5.95046025]
[1772431019452,0.002,1975.8,1975.7,5.95046025]
[1772431019753,0.002,1975.9,1975.7,5.95046025]
[1772431020857,0.00153886,1976.0,1975.7,5.95046025]
[1772431021365,0.00153886,1976.0,1975.8,1.26531025]
[1772431021928,6.26173797,1976.0,1975.4,5.95046025]
[1772431022146,6.26173797,1976.0,1975.3,11.01296069]
[1772431022431,6.26173797,1976.0,1975.4,5.95046025]
[1772431024344,7.52697064,1976.0,1975.4,7.21597967]
[1772431025233,7.52697064,1976.0,1975.4,7.2160146]
[1772431031336,7.52697064,1976.0,1975.5,0.001]
[1772431031849,6.26019911,1975.8,1975.5,5.95146025]
[1772431033133,6.26219911,1975.9,1975.5,0.001]
[1772431033346,6.26219911,1975.9,1975.5,5.95146025]
[1772431035333,7.38377671,1975.8,1975.5,0.001]
[1772431035541,6.41147613,1975.7,1975.5,0.001]
[1772431036058,6.11846646,1975.5,1975.2,0.001]
[1772431036292,6.41147613,1975.3,1975.1,0.001]
[1772431036966,6.11846646,1975.2,1975.1,0.001]
[1772431038555,7.38416107,1975.2,1975.1,0.001]
[1772431039137,6.32499402,1975.1,1974.6,6.10312643]
[1772431040587,6.32499402,1974.9,1974.6,6.10312643]
[1772431040774,5.06226794,1975.4,1974.6,6.10312643]
[1772431040775,6.32499402,1975.5,1974.7,6.10312643]
[1772431042665,6.32499402,1975.3,1974.9,6.10312643]
[1772431045063,6.32499402,1975.3,1974.9,7.36896584]
[1772431045677,6.32499402,1975.3,1975.0,0.001]
[1772431045987,6.32699402,1975.2,1975.0,0.001]
[1772431051588,7.59269545,1975.2,1975.0,0.001]
[1772431051762,6.32699402,1975.2,1975.0,0.001]
[1772431052984,0.002,1975.2,1975.0,0.001]
[1772431053659,6.32699402,1975.2,1975.0,0.001]
[1772431055699,6.32499402,1975.0,1974.9,0.001]
[1772431057989,0.002,1975.2,1974.9,6.10412643]
[1772431058185,2.988,1975.2,1974.9,6.10412643]
[1772431058577,9.31299402,1975.2,1974.9,6.10412643]
[1772431058978,10.57869172,1975.2,1974.9,6.10412643]
[1772431059601,6.32499402,1975.1,1975.0,0.001]
[1772431059802,6.32699402,1975.1,1975.0,0.001]
[1772431061299,0.002,1975.1,1975.0,0.001]
[1772431064004,0.002,1975.3,1975.1,6.10312643]
[1772431066989,0.002,1975.3,1975.1,7.36885649]
[1772431067786,0.002,1975.3,1975.1,6.10312643]
[1772431068082,0.002,1975.3,1975.1,7.36887088]
[1772431068284,0.002,1975.3,1975.1,6.10312643]
[1772431068807,0.002,1975.3,1975.0,1.26677405]
[1772431068808,6.456939,1975.3,1975.0,6.00796547]
[1772431069695,6.16370977,1975.3,1975.0,6.00796547]
[1772431070780,7.42935967,1975.3,1975.0,6.00796547]
[1772431071609,7.7225889,1975.3,1975.0,6.00796547]
[1772431072811,6.456939,1975.3,1975.0,6.00796547]
[1772431073111,6.456939,1975.3,1975.0,0.001]
[1772431073291,6.456939,1975.3,1974.6,0.29322923]
[1772431073292,6.16170977,1975.0,1974.6,6.00696547]
[1772431073689,0.29322923,1974.9,1974.6,6.00696547]
[1772431073893,6.454939,1975.0,1974.6,6.00696547]
[1772431074337,7.72076843,1975.0,1974.6,6.00696547]
[1772431074810,7.72076843,1975.0,1974.8,0.001]
[1772431075806,6.454939,1975.0,1974.8,0.001]
[1772431081220,6.16170977,1975.0,1974.8,0.001]
[1772431082098,0.29322923,1975.1,1974.8,0.001]
[1772431082418,7.72069936,1975.1,1974.8,0.001]
[1772431082902,6.454939,1975.1,1974.8,0.001]
[1772431083103,7.72069869,1975.1,1974.8,0.001]
[1772431083324,0.002,1975.2,1974.8,6.00796547]
[1772431083498,0.002,1975.2,1974.8,6.3011947]
[1772431084921,0.002,1975.2,1974.8,6.00796547]
[1772431086206,0.002,1975.2,1975.0,6.00696547]
[1772431088604,0.002,1975.2,1974.9,0.001]
[1772431088918,0.002,1975.2,1974.9,7.27385228]
[1772431093113,0.002,1975.3,1975.0,6.00696547]
[1772431094627,0.002,1975.4,1975.0,6.27427194]
[1772431094831,6.14024794,1975.4,1975.0,7.54008156]
[1772431097129,0.002,1975.4,1975.0,7.54008156]
[1772431099338,0.002,1975.3,1975.0,7.54008156]
[1772431106850,0.002,1975.3,1975.0,10.18008156]
[1772431107145,6.22724687,1975.3,1975.0,7.39988577]
[1772431108054,6.22724687,1975.3,1974.9,10.04191642]
[1772431109052,6.22724687,1975.3,1974.9,3.90784027]
[1772431109250,6.22724687,1975.3,1975.0,6.13407615]
[1772431111877,6.22724687,1975.3,1975.0,7.40087895]
[1772431112646,6.22524687,1975.1,1974.9,0.001]
[1772431112859,0.002,1975.3,1974.9,7.40094749]
[1772431113533,6.22724687,1975.3,1974.9,7.40094749]
[1772431120283,0.002,1975.3,1974.9,7.40094749]
[1772431121970,6.22724687,1975.3,1974.9,7.40094749]
[1772431124975,6.22724687,1975.3,1975.0,0.001]
[1772431125279,6.22724687,1975.2,1975.0,0.001]
[1772431126278,0.002,1975.2,1975.0,6.13507615]
[1772431126895,0.002,1975.2,1975.0,0.001]
[1772431127572,0.002,1975.2,1975.0,6.17687784]